bitfinex/quotes_SOLUSD_20250313
["timestamp","ask_amount","ask_price","bid_price","bid_amount"]
[1741869671459,9.6828,127.05,127.02,0.063]
[1741869671671,9.7802,127.09,127.04,55.85899597]
[1741869671969,4.7534,127.1,127.08,55.85899597]
[1741869672146,8.9785,127.13,127.1,18.64964886]
[1741869672349,8.9785,127.13,127.09,37.06718554]
[1741869672350,8.9785,127.13,127.11,74.06009609]
[1741869672639,9.2075,127.17,127.12,55.69477037]
[1741869672865,9.2075,127.17,127.13,9.48]
[1741869672866,64.61794723,127.17,127.13,9.48]
[1741869673066,55.41044723,127.14,127.09,9.48]
[1741869673249,17.0713,127.17,127.09,9.48]
[1741869673250,55.41044723,127.12,127.09,9.48]
[1741869673446,55.41044723,127.1,127.05,9.48]
[1741869673745,4.4743,127.11,127.05,9.48]
[1741869673746,55.41044723,127.08,127.05,9.48]
[1741869673960,64.83834723,127.09,127.05,9.48]
[1741869674147,9.4279,127.09,127.05,9.48]
[1741869674747,9.4279,127.09,127.05,64.89044723]
[1741869675548,64.66794723,127.14,127.09,18.64964886]
[1741869675882,9.2575,127.14,127.11,55.41044723]
[1741869676661,0.03,127.17,127.13,74.06009609]
[1741869676969,0.03,127.17,127.14,55.41044723]
[1741869677172,0.03,127.17,127.15,55.41044723]
[1741869677487,0.03,127.17,127.14,55.41044723]
[1741869677678,0.03,127.17,127.12,8.00866157]
[1741869677679,0.03,127.17,127.12,63.4191088]
[1741869677856,55.41044723,127.16,127.11,74.06009609]
[1741869678061,55.41044723,127.16,127.1,72.73804723]
[1741869678384,7.8936,127.17,127.1,64.87044723]
[1741869678385,55.41044723,127.15,127.1,64.87044723]
[1741869678673,75.41044723,127.16,127.11,74.06009609]
[1741869678852,55.41044723,127.16,127.11,74.06009609]
[1741869679052,55.41044723,127.14,127.1,9.46]
[1741869679263,55.41044723,127.13,127.1,9.46]
[1741869679857,20.0,127.14,127.04,55.41044723]
[1741869679858,64.37374723,127.11,127.04,55.41044723]
[1741869680166,64.37374723,127.11,127.03,0.14216157]
[1741869680167,55.41044723,127.08,127.03,0.14216157]
[1741869680471,55.41044723,127.06,127.02,0.063]
[1741869680678,63.28054723,127.07,127.02,0.063]
[1741869680850,55.41044723,127.07,127.02,0.063]
[1741869681051,75.41044723,127.08,127.02,55.47344723]
[1741869681272,75.41044723,127.08,127.02,0.063]
[1741869681482,75.41044723,127.08,127.02,55.47344723]
[1741869681655,55.41044723,127.07,127.02,55.47344723]
[1741869681983,75.41044723,127.08,127.03,55.41044723]
[1741869682373,19.6662,127.13,127.02,18.85481043]
[1741869682374,17.4334,127.15,127.05,55.41044723]
[1741869682568,55.41044723,127.14,127.08,55.41044723]
[1741869682883,55.41044723,127.12,127.07,7.8694]
[1741869683179,55.41044723,127.11,127.06,9.46]
[1741869683383,55.41044723,127.09,127.06,9.46]
[1741869683580,55.41044723,127.12,127.06,64.87044723]
[1741869683757,20.0,127.12,127.07,55.41044723]
[1741869683953,55.41044723,127.13,127.08,74.06009609]
[1741869684266,55.41044723,127.13,127.07,55.41044723]
[1741869684566,64.97914723,127.15,127.09,81.92849609]
[1741869684758,9.5687,127.15,127.11,55.41044723]
[1741869684957,9.5687,127.15,127.09,74.06009609]
[1741869684958,55.41044723,127.14,127.09,74.06009609]
[1741869685564,55.41044723,127.14,127.08,63.27924723]
[1741869685759,55.41044723,127.13,127.08,63.27924723]
[1741869685951,64.97914723,127.15,127.09,74.06009609]
[1741869686367,9.5687,127.15,127.1,55.41044723]
[1741869686751,9.5687,127.15,127.12,18.64964886]
[1741869687477,9.5687,127.15,127.11,7.8672]
[1741869687660,64.97914723,127.15,127.11,7.8672]
[1741869688265,9.5687,127.15,127.11,63.27764723]
[1741869688568,0.03,127.17,127.13,63.27634723]
[1741869688770,0.03,127.17,127.15,55.41044723]
[1741869690161,0.03,127.17,127.16,74.34441923]
[1741869690575,0.063,127.18,127.17,26.65521043]
[1741869690756,0.063,127.18,127.17,91.52565766]
[1741869691377,0.063,127.18,127.17,91.66781923]
[1741869691956,0.063,127.18,127.17,83.66225766]
[1741869692487,0.063,127.18,127.17,91.66781923]
[1741869692667,0.063,127.18,127.17,91.52565766]
[1741869692880,0.063,127.18,127.15,8.00666157]
[1741869693077,0.063,127.18,127.15,55.41044723]
[1741869693260,0.063,127.18,127.16,18.64964886]
[1741869693765,0.063,127.18,127.17,74.06009609]
[1741869694164,0.063,127.18,127.17,74.20225766]
[1741869694357,0.063,127.18,127.17,74.34441923]
[1741869694761,0.063,127.18,127.17,82.20781923]
[1741869695953,0.063,127.18,127.17,82.06565766]
[1741869697577,0.063,127.18,127.17,55.41044723]
[1741869697785,0.063,127.18,127.15,18.71264886]
[1741869698285,0.063,127.18,127.15,0.063]
[1741869698464,55.41044723,127.17,127.15,0.063]
[1741869699786,63.27434723,127.17,127.15,0.063]
[1741869700169,7.8639,127.17,127.15,0.063]
[1741869700370,64.57794723,127.18,127.15,0.063]
[1741869700688,0.063,127.18,127.17,0.14216157]
[1741869700872,0.063,127.18,127.17,74.20225766]
[1741869701383,0.063,127.18,127.17,18.79181043]
[1741869702375,0.063,127.18,127.17,82.06565766]
[1741869703177,0.063,127.18,127.17,18.79181043]
[1741869703380,0.063,127.18,127.16,18.64964886]
[1741869704388,55.41044723,127.17,127.15,0.063]
[1741869704574,55.41044723,127.16,127.15,0.063]
[1741869704974,55.41044723,127.17,127.15,0.063]
[1741869705782,55.47344723,127.18,127.15,0.063]
[1741869706289,0.063,127.18,127.15,0.063]
[1741869707095,0.063,127.18,127.15,74.26525766]
[1741869708210,0.063,127.18,127.15,82.12985766]
[1741869708580,0.03,127.17,127.15,82.12985766]
[1741869708814,0.03,127.17,127.15,63.4802088]
[1741869709316,0.03,127.17,127.16,74.20225766]
[1741869709485,0.03,127.17,127.16,74.34441923]
[1741869709990,0.03,127.17,127.16,82.06635766]
[1741869710191,0.03,127.17,127.16,74.20225766]
[1741869710390,0.03,127.17,127.16,55.69799421]
[1741869710585,0.03,127.17,127.15,36.96918378]
[1741869710786,36.93618378,127.17,127.15,0.063]
[1741869710985,41.34938378,127.16,127.15,0.063]
[1741869711194,0.14216157,127.15,127.06,44.77608378]
[1741869711392,36.90618378,127.11,127.05,44.83988378]
[1741869711586,36.90618378,127.1,127.05,0.063]
[1741869711788,20.0,127.12,127.06,0.14216157]
[1741869711992,36.90618378,127.1,127.06,0.14216157]
[1741869712316,36.90618378,127.1,127.06,18.79181043]
[1741869712706,36.90618378,127.1,127.05,18.71264886]
[1741869713005,36.90618378,127.13,127.08,55.69799421]
[1741869713217,56.90618378,127.14,127.08,37.04834535]
[1741869713515,20.0,127.14,127.1,37.04834535]
[1741869713696,41.34938378,127.16,127.1,37.04834535]
[1741869713896,36.90618378,127.15,127.1,37.04834535]
[1741869714103,36.90618378,127.15,127.1,36.90618378]
[1741869714410,75.41384002,127.15,127.09,81.93178888]
[1741869715511,55.41384002,127.13,127.09,18.79181043]
[1741869715819,55.41384002,127.1,127.06,0.14216157]
[1741869716113,55.41384002,127.11,127.06,82.07585045]
[1741869716292,55.41384002,127.13,127.07,55.41384002]
[1741869716692,55.41384002,127.13,127.08,55.41384002]
[1741869717101,55.41384002,127.13,127.07,55.41384002]
[1741869717299,55.41384002,127.13,127.06,26.66201043]
[1741869717614,55.41384002,127.12,127.06,82.07585045]
[1741869717806,55.41384002,127.11,127.06,82.07585045]
[1741869718006,27.5265,127.15,127.05,0.063]
[1741869718007,63.28164002,127.1,127.05,0.063]
[1741869718204,63.28164002,127.1,127.05,0.20516157]
[1741869718407,55.41384002,127.09,127.05,0.063]
[1741869718797,55.41384002,127.11,127.06,55.41384002]
[1741869719010,55.41384002,127.12,127.07,74.20565045]
[1741869719208,55.41384002,127.12,127.07,0.14216157]
[1741869719410,55.41384002,127.12,127.07,18.79181043]
[1741869719611,55.41384002,127.13,127.08,55.41384002]
[1741869719912,63.27914002,127.14,127.08,55.41384002]
[1741869720212,7.8653,127.14,127.09,63.28204002]
[1741869720413,55.41384002,127.13,127.07,74.20565045]
[1741869720617,55.41384002,127.12,127.07,74.20565045]
[1741869720792,55.41384002,127.12,127.06,72.80664002]
[1741869721113,55.41384002,127.1,127.06,9.523]
[1741869721309,55.41384002,127.09,127.06,9.523]
[1741869721823,55.41384002,127.08,127.06,0.063]
[1741869722032,55.41384002,127.09,127.06,0.063]
[1741869722342,63.28224002,127.09,127.06,0.063]
[1741869722499,55.41384002,127.07,127.06,0.063]
[1741869724100,63.28344002,127.07,127.06,0.063]
[1741869724824,63.42560159,127.07,127.05,0.063]
[1741869725018,55.41384002,127.06,127.05,0.063]
[1741869726223,20.0,127.06,127.05,0.063]
[1741869726447,75.41384002,127.06,127.05,0.063]
[1741869728048,20.0,127.06,127.05,0.063]
[1741869728210,83.28404002,127.06,127.05,0.063]
[1741869728706,83.28404002,127.06,126.94,55.47684002]
[1741869728707,20.0,127.0,126.94,55.47684002]
[1741869728907,55.41384002,126.95,126.94,0.063]
[1741869729512,23.52011043,127.0,126.94,0.063]
[1741869729710,55.41384002,126.98,126.94,0.063]
[1741869729925,55.41384002,126.95,126.94,0.063]
[1741869730106,55.41384002,126.96,126.94,0.063]
[1741869731430,7.8748,126.99,126.94,0.063]
[1741869731431,64.72634002,126.95,126.94,0.063]
[1741869732425,72.74560159,126.95,126.94,0.063]
[1741869733441,72.60344002,126.95,126.94,0.063]
[1741869733651,73.38776316,126.95,126.93,0.03]
[1741869733809,0.14216157,126.92,126.89,0.063]
[1741869734140,20.0,126.87,126.81,0.03]
[1741869734312,55.41384002,126.84,126.81,0.03]
[1741869735058,55.41384002,126.86,126.81,0.03]
[1741869735219,55.41384002,126.85,126.81,0.03]
[1741869735416,85.23784002,126.87,126.82,18.64964886]
[1741869735614,55.41384002,126.89,126.85,18.64964886]
[1741869736123,55.41384002,126.87,126.81,0.03]
[1741869736327,55.41384002,126.87,126.83,18.64964886]
[1741869736850,75.41384002,126.84,126.81,0.03]
[1741869737041,55.41384002,126.82,126.81,0.03]
[1741869737210,75.41384002,126.83,126.81,0.03]
[1741869737611,55.41384002,126.82,126.81,0.03]
[1741869738637,63.29894002,126.82,126.81,0.03]
[1741869739513,55.41384002,126.82,126.81,0.03]
[1741869739709,84.79594002,126.83,126.81,0.03]
[1741869739915,92.68054002,126.83,126.81,0.03]
[1741869740223,55.41384002,126.82,126.81,0.03]
[1741869740417,63.29894002,126.82,126.81,0.03]
[1741869742724,0.14216157,126.81,126.8,0.03]
[1741869742920,75.55600159,126.8,126.79,0.0001]
[1741869743114,85.01600159,126.8,126.76,0.03]
[1741869743319,110.82768004,126.77,126.76,0.03]
[1741869743946,55.41384002,126.77,126.76,0.03]
[1741869744440,110.82768004,126.77,126.76,0.03]
[1741869744619,118.71598004,126.77,126.76,0.03]
[1741869745015,118.85814161,126.77,126.76,0.03]
[1741869745530,133.11684161,126.77,126.76,0.03]
[1741869745714,20.0,126.74,126.67,18.64964886]
[1741869745919,55.41384002,126.7,126.67,18.64964886]
[1741869746238,55.41384002,126.71,126.66,0.14216157]
[1741869746439,55.41384002,126.71,126.66,18.79181043]
[1741869746957,55.41384002,126.71,126.66,26.68671043]
[1741869747120,14.2587,126.77,126.69,0.14216157]
[1741869747321,55.41384002,126.78,126.73,18.64964886]
[1741869747528,55.41384002,126.78,126.72,74.06348888]
[1741869747722,55.41384002,126.76,126.71,18.64964886]
[1741869747918,20.0,126.77,126.73,55.41384002]
[1741869748329,55.41384002,126.79,126.74,55.41384002]
[1741869748537,17.512,126.81,126.74,55.41384002]
[1741869748538,55.41384002,126.8,126.75,55.41384002]
[1741869748942,65.03994002,126.81,126.76,63.30274002]
[1741869749123,55.41384002,126.83,126.78,55.41384002]
[1741869749324,9.7371,126.85,126.78,55.41384002]
[1741869749325,55.41384002,126.84,126.78,55.41384002]
[1741869749628,55.41384002,126.83,126.77,74.06348888]
[1741869750037,65.15094002,126.85,126.8,18.64964886]
[1741869750344,55.41384002,126.82,126.78,18.64964886]
[1741869750527,55.41384002,126.8,126.75,9.46]
[1741869750853,55.41384002,126.78,126.75,9.46]
[1741869751535,55.41384002,126.79,126.75,18.64964886]
[1741869751735,75.41384002,126.8,126.75,18.64964886]
[1741869752348,75.41384002,126.8,126.75,55.41384002]
[1741869752738,55.41384002,126.79,126.74,74.20565045]
[1741869753053,55.41384002,126.78,126.74,0.14216157]
[1741869753234,55.41384002,126.78,126.73,18.64964886]
[1741869753551,55.41384002,126.78,126.73,74.06348888]
[1741869754044,55.41384002,126.78,126.72,8.03336157]
[1741869754045,55.41384002,126.77,126.72,55.41384002]
[1741869754750,55.41384002,126.75,126.71,18.64964886]
[1741869755242,55.41384002,126.76,126.71,74.06348888]
[1741869755449,55.41384002,126.78,126.73,55.41384002]
[1741869755626,55.41384002,126.76,126.72,18.64964886]
[1741869756249,55.41384002,126.77,126.73,18.64964886]
[1741869756435,75.41384002,126.78,126.73,18.64964886]
[1741869756630,55.41384002,126.77,126.73,18.64964886]
[1741869756831,55.41384002,126.76,126.71,55.41384002]
[1741869757033,63.30284002,126.76,126.72,18.64964886]
[1741869757436,55.41384002,126.75,126.71,0.14216157]
[1741869757636,55.41384002,126.75,126.71,18.79181043]
[1741869757939,7.889,126.76,126.71,74.20565045]
[1741869758244,63.30284002,126.76,126.71,18.79181043]
[1741869758425,55.41384002,126.75,126.71,18.79181043]
[1741869758626,63.30284002,126.76,126.71,18.79181043]
[1741869759429,55.41384002,126.76,126.71,82.09745045]
[1741869759928,63.30294002,126.76,126.71,74.20565045]
[1741869760334,63.30294002,126.76,126.71,26.68371043]
[1741869760535,55.41384002,126.75,126.71,18.79181043]
[1741869761647,55.41384002,126.74,126.68,4.5498]
[1741869761837,55.41384002,126.73,126.69,18.79181043]
[1741869762038,55.41384002,126.73,126.69,0.14216157]
[1741869762240,75.41384002,126.74,126.69,0.14216157]
[1741869762437,20.0,126.74,126.69,55.55600159]
[1741869762636,20.0,126.74,126.7,18.64964886]
[1741869762849,63.30214002,126.77,126.71,74.20565045]
[1741869763341,55.41384002,126.76,126.71,74.20565045]
[1741869763542,55.41384002,126.79,126.74,55.41384002]
[1741869763739,55.41384002,126.78,126.74,18.64964886]
[1741869763937,55.41384002,126.77,126.72,55.55600159]
[1741869764144,55.41384002,126.75,126.71,9.46]
[1741869764345,55.41384002,126.75,126.72,18.64964886]
[1741869764653,55.41384002,126.77,126.72,74.06348888]
[1741869764850,55.41384002,126.77,126.72,18.64964886]
[1741869765050,55.41384002,126.76,126.72,18.64964886]
[1741869765249,55.41384002,126.75,126.72,18.64964886]
[1741869765750,63.30364002,126.75,126.72,18.64964886]
[1741869766048,63.30364002,126.75,126.7,18.79181043]
[1741869766259,45.06661636,126.75,126.7,18.79181043]
[1741869766438,45.06661636,126.75,126.7,26.68441043]
[1741869766639,57.17681636,126.76,126.72,18.64964886]
[1741869766848,37.17681636,126.79,126.74,55.82646522]
[1741869767247,37.17681636,126.79,126.74,18.64964886]
[1741869767755,37.17681636,126.79,126.75,7.8895]
[1741869767950,37.17681636,126.81,126.76,18.64964886]
[1741869768134,7.8851,126.82,126.76,18.64964886]
[1741869768338,37.17681636,126.8,126.76,18.64964886]
[1741869768969,37.17681636,126.81,126.76,55.82646522]
[1741869769265,37.17681636,126.81,126.75,8.03166157]
[1741869769266,37.17681636,126.79,126.75,0.14216157]
[1741869769468,37.17681636,126.79,126.76,0.14216157]
[1741869769959,57.17681636,126.8,126.76,0.14216157]
[1741869770662,20.0,126.8,126.77,18.64964886]
[1741869770861,37.17681636,126.81,126.77,18.64964886]
[1741869771244,37.17681636,126.8,126.76,7.8888]
[1741869771444,37.17681636,126.8,126.76,0.14216157]
[1741869771667,37.17681636,126.81,126.76,0.14216157]
[1741869771861,45.06311636,126.81,126.76,0.14216157]
[1741869772043,37.17681636,126.8,126.76,0.14216157]
[1741869772244,37.17681636,126.8,126.76,8.03086157]
[1741869772456,45.06311636,126.81,126.76,8.03086157]
[1741869772767,45.06071636,126.84,126.78,37.31897793]
[1741869772959,45.06071636,126.84,126.79,18.64964886]
[1741869774069,45.06071636,126.84,126.79,26.53664886]
[1741869774278,37.17681636,126.84,126.79,26.53664886]
[1741869774567,45.12341636,126.85,126.79,63.71346522]
[1741869774869,37.17681636,126.84,126.79,18.64964886]
[1741869775043,37.17681636,126.83,126.79,18.64964886]
[1741869775866,45.06071636,126.84,126.78,63.85612679]
[1741869776058,37.17681636,126.81,126.76,7.8887]
[1741869776364,45.06071636,126.84,126.79,18.64964886]
[1741869776575,7.8839,126.84,126.79,37.17681636]
[1741869776940,45.06071636,126.84,126.79,18.64964886]
[1741869777165,37.17681636,126.83,126.79,18.64964886]
[1741869777466,45.06071636,126.84,126.79,18.64964886]
[1741869777769,37.17681636,126.83,126.77,55.96862679]
[1741869778073,7.8851,126.82,126.79,18.64964886]
[1741869778365,0.063,126.85,126.8,37.31897793]
[1741869778577,0.063,126.85,126.83,18.64964886]
[1741869778755,0.063,126.85,126.84,18.79181043]
[1741869778959,0.063,126.85,126.84,56.11078836]
[1741869779260,0.063,126.85,126.84,93.28760472]
[1741869779464,0.063,126.85,126.84,56.11078836]
[1741869780276,0.063,126.85,126.84,63.99468836]
[1741869781146,0.063,126.85,126.84,101.17150472]
[1741869782275,0.063,126.85,126.84,56.11078836]
[1741869782473,0.063,126.85,126.84,63.99468836]
[1741869783046,0.063,126.89,126.85,0.28432314]
[1741869783277,0.063,126.89,126.88,56.11078836]
[1741869784152,0.063,126.89,126.88,113.99218836]
[1741869784353,0.063,126.89,126.88,63.99218836]
[1741869784691,0.063,126.89,126.88,18.933972]
[1741869784858,0.063,126.89,126.86,9.44]
[1741869785255,0.063,126.89,126.87,0.14216157]
[1741869785463,0.063,126.89,126.88,56.11078836]
[1741869786371,0.063,126.89,126.87,9.58216157]
[1741869786571,37.23981636,126.89,126.84,18.933972]
[1741869786896,37.23981636,126.89,126.84,56.11078836]
[1741869787186,0.063,126.89,126.88,0.14216157]
[1741869787391,0.063,126.89,126.86,37.17681636]
[1741869787683,0.063,126.89,126.86,18.79181043]
[1741869787852,0.063,126.89,126.86,55.96862679]
[1741869788464,0.063,126.89,126.84,0.14216157]
[1741869788677,0.063,126.89,126.85,37.17681636]
[1741869788859,0.063,126.89,126.86,18.79181043]
[1741869789057,0.063,126.89,126.87,55.82646522]
[1741869789256,0.063,126.89,126.86,55.96862679]
[1741869789894,37.23981636,126.89,126.84,37.31897793]
[1741869790190,0.063,126.89,126.88,63.85002679]
[1741869791154,0.063,126.89,126.88,63.99218836]
[1741869792360,0.063,126.89,126.88,18.79181043]
[1741869792556,0.063,126.89,126.87,18.64964886]
[1741869793063,0.063,126.89,126.87,55.82646522]
[1741869793276,0.063,126.89,126.88,56.11078836]
[1741869794675,0.063,126.89,126.88,63.99218836]
[1741869795562,7.9386,126.98,126.9,0.14216157]
[1741869795761,45.11541636,126.98,126.92,37.17681636]
[1741869795959,37.17681636,126.94,126.9,9.42]
[1741869796374,7.8783,126.93,126.9,9.42]
[1741869796569,37.17681636,126.94,126.9,9.42]
[1741869796766,57.17681636,126.95,126.9,54.47701636]
[1741869796969,57.17681636,126.95,126.9,9.42]
[1741869797567,57.17681636,126.95,126.9,17.3001]
[1741869797793,57.17681636,126.95,126.9,9.42]
[1741869797991,37.17681636,126.93,126.9,9.42]
[1741869798768,45.05571636,126.92,126.89,18.79181043]
[1741869798973,45.05571636,126.92,126.89,0.14216157]
[1741869799295,37.17681636,126.91,126.87,18.64964886]
[1741869800097,45.05571636,126.92,126.87,55.82646522]
[1741869800671,19.6955,126.94,126.87,55.82646522]
[1741869800672,7.8785,126.93,126.89,18.64964886]
[1741869800980,7.8785,126.93,126.89,55.82646522]
[1741869802295,45.05531636,126.93,126.89,18.64964886]
[1741869803597,7.8785,126.93,126.89,55.82646522]
[1741869803804,7.8785,126.93,126.89,18.64964886]
[1741869803971,7.8785,126.93,126.89,55.82646522]
[1741869804166,27.8772,126.95,126.9,37.4611395]
[1741869804372,37.23981636,126.98,126.93,18.64964886]
[1741869804692,0.063,126.98,126.93,55.82646522]
[1741869804887,0.063,126.98,126.94,37.17681636]
[1741869805266,0.063,126.98,126.95,55.96862679]
[1741869805470,0.063,126.98,126.96,37.17681636]
[1741869806183,0.063,126.98,126.96,45.05321636]
[1741869806391,0.063,126.98,126.96,18.64964886]
[1741869806589,0.063,126.98,126.95,18.79181043]
[1741869806787,0.063,126.98,126.93,45.05491636]
[1741869806998,37.17681636,126.95,126.9,18.79181043]
[1741869807297,37.17681636,126.97,126.92,18.64964886]
[1741869808403,37.17681636,126.94,126.89,37.31897793]
[1741869808572,37.17681636,126.93,126.9,0.14216157]
[1741869808775,37.17681636,126.91,126.88,0.03]
[1741869808978,37.17681636,126.89,126.88,0.03]
[1741869810313,45.05761636,126.89,126.88,0.03]
[1741869812177,7.8808,126.89,126.88,0.03]
[1741869812370,45.05761636,126.89,126.88,0.03]
[1741869813895,20.0,126.85,126.84,0.03]
[1741869814096,37.17681636,126.86,126.84,0.03]
[1741869814299,45.05981636,126.86,126.84,0.03]
[1741869816008,37.17681636,126.85,126.84,0.03]
[1741869816312,45.06011636,126.85,126.84,0.03]
[1741869817180,20.0,126.85,126.84,0.03]
[1741869817383,37.17681636,126.86,126.84,0.03]
[1741869817594,57.17681636,126.85,126.84,0.03]
[1741869818611,20.0,126.85,126.84,0.03]
[1741869819015,65.06011636,126.85,126.84,0.03]
[1741869820497,20.0,126.85,126.84,0.03]
[1741869820887,27.8833,126.85,126.84,0.03]
[1741869821318,65.06011636,126.85,126.84,0.03]
[1741869822590,27.8833,126.85,126.84,0.03]
[1741869822891,7.8833,126.85,126.84,0.03]
[1741869823117,8.8746,126.88,126.84,37.20681636]
[1741869823421,4.5458,126.89,126.88,18.933972]
[1741869823422,0.063,126.89,126.88,18.933972]
[1741869823589,0.063,126.89,126.88,56.11078836]
[1741869823917,12.20341282,126.95,126.89,0.28432314]
[1741869824213,12.20341282,126.95,126.93,37.17681636]
[1741869824424,12.20341282,126.95,126.89,0.14216157]
[1741869824591,12.20341282,126.95,126.91,37.17681636]
[1741869825147,12.20341282,126.95,126.93,37.17681636]
[1741869825616,24.40682564,126.96,126.92,18.64964886]
[1741869825617,7.8766,126.96,126.92,18.64964886]
[1741869825800,0.063,126.98,126.93,37.31897793]
[1741869826326,37.17681636,126.96,126.92,18.64964886]
[1741869827006,37.17681636,126.95,126.91,18.64964886]
[1741869827611,45.05381636,126.96,126.91,18.64964886]
[1741869827799,45.05381636,126.96,126.91,37.17681636]
[1741869827993,37.17681636,126.95,126.91,0.14216157]
[1741869828210,37.17681636,126.94,126.9,18.79181043]
[1741869828411,37.17681636,126.92,126.88,18.64964886]
[1741869828607,37.17681636,126.91,126.87,9.4]
[1741869828823,37.17681636,126.89,126.87,9.4]
[1741869829029,37.17681636,126.89,126.86,0.14216157]
[1741869829224,7.8802,126.9,126.84,37.20681636]
[1741869829225,37.17681636,126.87,126.84,0.03]
[1741869829531,37.17681636,126.86,126.84,0.03]
[1741869830839,7.8833,126.85,126.84,0.03]
[1741869831146,45.05961636,126.86,126.84,0.03]
[1741869831319,7.8828,126.86,126.84,0.03]
[1741869831726,45.05961636,126.86,126.84,0.03]
[1741869832708,7.8828,126.86,126.84,0.03]
[1741869832906,57.17681636,126.88,126.84,0.03]
[1741869833112,57.17681636,126.87,126.84,0.03]
[1741869833617,37.17681636,126.89,126.84,37.20681636]
[1741869834630,27.5807,126.9,126.84,0.03]
[1741869834631,37.17681636,126.88,126.84,0.03]
[1741869834815,7.882,126.87,126.84,0.03]
[1741869835021,45.05881636,126.87,126.84,0.03]
[1741869836137,7.8802,126.9,126.84,37.34897793]
[1741869836347,45.05701636,126.9,126.85,37.31897793]
[1741869836646,37.17681636,126.89,126.85,0.14216157]
[1741869837244,7.8813,126.89,126.85,0.14216157]
[1741869837434,45.05721636,126.9,126.85,37.31897793]
[1741869837641,45.05721636,126.9,126.85,0.14216157]
[1741869837939,37.17681636,126.89,126.85,0.14216157]
[1741869838643,37.17681636,126.87,126.84,0.03]
[1741869838816,27.5809,126.9,126.84,0.03]
[1741869838817,37.17681636,126.86,126.84,0.03]
[1741869839232,7.8825,126.87,126.84,0.03]
[1741869839428,45.05931636,126.87,126.84,0.03]
[1741869839639,37.17681636,126.87,126.84,0.03]
[1741869840173,45.05891636,126.87,126.84,0.03]
[1741869840446,37.17681636,126.87,126.84,0.03]
[1741869840624,57.17681636,126.88,126.84,0.03]
[1741869841125,65.05831636,126.88,126.84,0.03]
[1741869841636,57.17681636,126.88,126.84,0.03]
[1741869842011,37.17681636,126.9,126.86,18.64964886]
[1741869842212,37.17681636,126.91,126.86,55.82646522]
[1741869842442,37.17681636,126.92,126.86,55.82646522]
[1741869842652,37.17681636,126.92,126.87,37.31897793]
[1741869842823,37.17681636,126.92,126.87,0.14216157]
[1741869843223,37.17681636,126.9,126.86,18.64964886]
[1741869843429,37.17681636,126.88,126.84,0.17216157]
[1741869843937,37.17681636,126.89,126.85,18.79181043]
[1741869844525,37.17681636,126.9,126.85,18.79181043]
[1741869844842,37.17681636,126.9,126.85,37.31897793]
[1741869845039,37.17681636,126.92,126.87,37.31897793]
[1741869845226,37.17681636,126.9,126.87,0.14216157]
[1741869845426,37.17681636,126.91,126.87,18.79181043]
[1741869845742,37.23981636,126.95,126.89,37.31897793]
[1741869845944,0.063,126.95,126.91,37.31897793]
[1741869846252,0.063,126.95,126.92,37.17681636]
[1741869846422,0.063,126.95,126.92,18.64964886]
[1741869847425,37.23981636,126.95,126.9,37.17681636]
[1741869847741,37.17681636,126.94,126.91,18.64964886]
[1741869848050,37.17681636,126.94,126.89,56.11078836]
[1741869848940,37.23981636,126.95,126.91,18.79181043]
[1741869849142,0.063,126.95,126.91,37.31897793]
[1741869849323,0.063,126.95,126.91,0.14216157]
[1741869849527,37.23981636,126.95,126.91,0.14216157]
[1741869849951,0.063,126.95,126.92,18.64964886]
[1741869850146,37.23981636,126.95,126.9,37.17681636]
[1741869850350,37.23981636,126.95,126.91,18.64964886]
[1741869850731,37.17681636,126.94,126.9,18.64964886]
[1741869851546,45.05451636,126.94,126.9,18.64964886]
[1741869852528,37.17681636,126.92,126.89,18.79181043]
[1741869853836,45.05631636,126.92,126.89,18.79181043]
[1741869855533,20.063,126.95,126.89,18.79181043]
[1741869855733,57.23981636,126.95,126.9,37.17681636]
[1741869856038,57.23981636,126.95,126.89,26.67251043]
[1741869856039,37.17681636,126.93,126.89,0.14216157]
[1741869856242,37.17681636,126.92,126.89,18.79181043]
[1741869856552,0.063,126.92,126.89,63.84932679]
[1741869856845,0.063,126.92,126.89,55.96862679]
[1741869857053,0.063,126.92,126.89,18.933972]